fUST/lending_fUST_20250602
["ID","MTS","AMOUNT","RATE_DAILY","PERIOD"]
[363800113,1748875846445,-430.0,0.00017646,2]
[363800115,1748875846455,-638.72,0.00017646,2]
[363800117,1748875846465,-2908.69,0.00017646,2]
[363800119,1748875846476,-430.0,0.00017646,2]
[363800121,1748875846487,-430.0,0.00017646,2]
[363800123,1748875846497,-430.0,0.00017646,2]
[363800125,1748875846507,-430.0,0.00017646,2]
[363800128,1748875846517,-497.83,0.00017646,2]
[363800130,1748875846527,-1048.09,0.00017646,2]
[363800132,1748875846537,-430.0,0.00017646,2]
[363800134,1748875846547,-285.4280154,0.00017646,2]
[363800136,1748875846558,-430.0,0.00017646,2]
[363800138,1748875846568,-673.12,0.00017646,2]
[363800140,1748875846578,-430.0,0.00017646,2]
[363800142,1748875846588,-430.0,0.00017646,2]
[363800144,1748875846597,-430.0,0.00017646,2]
[363800146,1748875846607,-430.0,0.00017646,2]
[363800148,1748875846617,-430.0,0.00017646,2]
[363800150,1748875846627,-430.0,0.00017646,2]
[363800152,1748875846636,-424.07300146,0.00017646,2]
[363800154,1748875846646,-564.67,0.00017646,2]
[363800156,1748875846656,-851.01,0.00017646,2]
[363800158,1748875846666,-430.0,0.00017646,2]
[363800160,1748875846676,-430.0,0.00017646,2]
[363800162,1748875846686,-430.0,0.00017646,2]
[363800164,1748875846696,-430.0,0.00017646,2]
[363800166,1748875846705,-227.82564367,0.00017647,2]
[363800168,1748875846715,-430.0,0.00017647,2]
[363800170,1748875846725,-430.0,0.00017647,2]
[363800172,1748875846735,-430.0,0.00017647,2]
[363800174,1748875846745,-430.0,0.00017647,2]
[363800176,1748875846756,-430.0,0.00017647,2]
[363800178,1748875846766,-430.0,0.00017647,2]
[363800180,1748875846775,-430.0,0.00017647,2]
[363800182,1748875846785,-469.58,0.00017647,2]
[363800185,1748875846795,-430.0,0.00017647,2]
[363800187,1748875846807,-458.12,0.00017647,2]
[363800189,1748875846816,-430.0,0.00017647,2]
[363800190,1748875846825,-430.0,0.00017647,2]
[363800193,1748875846835,-430.0,0.00017647,2]
[363800195,1748875846845,-430.0,0.00017647,2]
[363800197,1748875846853,-430.0,0.00017647,2]
[363800199,1748875846862,-430.0,0.00017647,2]
[363800201,1748875846872,-430.0,0.00017647,2]
[363800203,1748875846881,-430.0,0.00017647,2]
[363800205,1748875846890,-430.0,0.00017647,2]
[363800207,1748875846899,-430.0,0.00017647,2]
[363800210,1748875846907,-430.0,0.00017647,2]
[363800212,1748875846916,-878.66,0.00017647,2]
[363800214,1748875846925,-430.0,0.00017647,2]
[363800216,1748875846935,-430.0,0.00017647,2]
[363800218,1748875846946,-430.0,0.00017647,2]
[363800220,1748875846956,-430.0,0.00017647,2]
[363800222,1748875846966,-430.0,0.00017647,2]
[363800224,1748875846975,-430.0,0.00017647,2]
[363800226,1748875846987,-430.0,0.00017647,2]
[363800228,1748875846997,-430.0,0.00017647,2]
[363800230,1748875847007,-430.0,0.00017647,2]
[363800232,1748875847016,-2068.77,0.00017647,2]
[363800234,1748875847026,-873.36,0.00017647,2]
[363800236,1748875847036,-430.0,0.00017647,2]
[363800238,1748875847046,-430.0,0.00017647,2]
[363800241,1748875847056,-253.08751468,0.00017647,2]
[363800242,1748875847065,-430.0,0.00017647,2]
[363800245,1748875847075,-216.7964511,0.00017647,2]
[363800247,1748875847085,-476.02,0.00017647,2]
[363800248,1748875847096,-430.0,0.00017647,2]
[363800250,1748875847106,-430.0,0.00017647,2]
[363800252,1748875847116,-430.0,0.00017647,2]
[363800254,1748875847128,-430.0,0.00017647,2]
[363800256,1748875847137,-430.0,0.00017647,2]
[363800258,1748875847146,-430.0,0.00017647,2]
[363800260,1748875847156,-430.0,0.00017647,2]
[363800263,1748875847166,-430.0,0.00017647,2]
[363800265,1748875847175,-430.0,0.00017647,2]
[363800267,1748875847184,-430.0,0.00017647,2]
[363800269,1748875847194,-565.92,0.00017647,2]
[363800270,1748875847203,-733.15,0.00017647,2]
[363800273,1748875847213,-430.0,0.00017647,2]
[363800275,1748875847223,-430.0,0.00017647,2]
[363800280,1748875847267,-430.0,0.00017647,2]
[363800282,1748875847276,-1526.4,0.00017647,2]
[363800284,1748875847286,-430.0,0.00017647,2]
[363800286,1748875847295,-430.0,0.00017647,2]
[363800288,1748875847305,-654.67,0.00017647,2]
[363800290,1748875847314,-430.0,0.00017647,2]
[363800292,1748875847324,-430.0,0.00017647,2]
[363800294,1748875847334,-3041.88,0.00017647,2]
[363800296,1748875847344,-430.0,0.00017647,2]
[363800298,1748875847353,-501.42,0.00017647,2]
[363800300,1748875847363,-1091.3,0.00017648,2]
[363800302,1748875847373,-430.0,0.00017648,2]
[363800304,1748875847382,-1175.57,0.00017648,2]
[363800306,1748875847391,-430.0,0.00017648,2]
[363800308,1748875847403,-1163.93,0.00017648,2]
[363800310,1748875847413,-430.0,0.00017648,2]
[363800312,1748875847422,-500.0,0.00017648,2]
[363800314,1748875847431,-500.0,0.00017648,2]
[363800316,1748875847440,-500.8256069,0.00017648,2]
[363800318,1748875847451,-500.0,0.00017648,2]
[363800320,1748875847460,-500.0,0.00017648,2]
[363800321,1748875847470,-500.0,0.00017648,2]
[363800324,1748875847484,-430.0,0.00017649,2]
[363800325,1748875847494,-430.0,0.00017649,2]
[363800327,1748875847504,-430.0,0.00017649,2]
[363800330,1748875847513,-356.54173381,0.00017649,2]
[363800331,1748875847523,-430.0,0.00017649,2]
[363800333,1748875847532,-430.0,0.00017649,2]
[363800335,1748875847541,-430.0,0.00017649,2]
[363800337,1748875847550,-430.0,0.00017649,2]
[363800339,1748875847559,-430.0,0.00017649,2]
[363800342,1748875847569,-430.0,0.00017649,2]
[363800343,1748875847579,-434.65,0.00017649,2]
[363800345,1748875847588,-430.0,0.00017649,2]
[363800347,1748875847597,-430.0,0.00017649,2]
[363800350,1748875847606,-430.0,0.00017649,2]
[363800352,1748875847616,-430.0,0.00017649,2]
[363800354,1748875847625,-430.0,0.00017649,2]
[363800356,1748875847634,-430.0,0.00017649,2]
[363800358,1748875847644,-430.0,0.00017649,2]
[363800360,1748875847653,-430.0,0.00017649,2]
[363800362,1748875847662,-430.0,0.00017649,2]
[363800364,1748875847671,-430.0,0.00017649,2]
[363800366,1748875847680,-430.0,0.00017649,2]
[363800368,1748875847690,-430.0,0.00017649,2]
[363800369,1748875847699,-430.0,0.00017649,2]
[363800371,1748875847708,-430.0,0.00017649,2]
[363800373,1748875847717,-430.0,0.00017649,2]
[363800375,1748875847726,-430.0,0.00017649,2]
[363800377,1748875847738,-267.74381626,0.00017668,2]
[363800380,1748875847748,-1500.0,0.00017668,2]
[363800382,1748875847757,-594.080342,0.00017686,2]
[363800384,1748875847766,-500.0,0.00017686,2]
[363800386,1748875847776,-500.0,0.00017686,2]
[363800388,1748875847785,-500.0,0.00017706,2]
[363800390,1748875847794,-500.0,0.00017706,2]
[363800392,1748875847804,-1000.0,0.00017706,2]
[363800394,1748875847813,-1000.0,0.00017706,2]
[363800396,1748875847822,-326.4742086,0.00017788,2]
[363800398,1748875847831,-1158.3028351,0.000179,2]
[363800399,1748875847842,-430.0,0.00017919,2]
[363800402,1748875847852,-363.97491118,0.00017919,2]
[363800403,1748875847861,-430.0,0.00017919,2]
[363800405,1748875847871,-804.94,0.00017919,2]
[363800408,1748875847881,-1248.91,0.00017919,2]
[363800409,1748875847890,-496.24709914,0.00017919,2]
[363800411,1748875847900,-430.0,0.00017919,2]
[363800413,1748875847909,-430.0,0.00017919,2]
[363800415,1748875847919,-1900.15,0.00017919,2]
[363800417,1748875847928,-2597.69,0.00017919,2]
[363800419,1748875847938,-430.0,0.00017919,2]
[363800421,1748875847947,-430.0,0.0001792,2]
[363800423,1748875847957,-638.72,0.0001792,2]
[363800425,1748875847967,-2908.69,0.0001792,2]
[363800427,1748875847977,-430.0,0.0001792,2]
[363800428,1748875847987,-430.0,0.0001792,2]
[363800429,1748875847996,-430.0,0.0001792,2]
[363800430,1748875848006,-430.0,0.0001792,2]
[363800431,1748875848015,-497.83,0.0001792,2]
[363800432,1748875848024,-1048.09,0.0001792,2]
[363800433,1748875848034,-430.0,0.0001792,2]
[363800434,1748875848044,-430.0,0.0001792,2]
[363800435,1748875848054,-673.12,0.0001792,2]
[363800436,1748875848064,-430.0,0.0001792,2]
[363800437,1748875848073,-430.0,0.0001792,2]
[363800438,1748875848083,-440.00941845,0.0001792,2]
[363800439,1748875848092,-430.0,0.0001792,2]
[363800440,1748875848101,-430.0,0.0001792,2]
[363800441,1748875848111,-430.0,0.0001792,2]
[363800442,1748875848120,-564.67,0.0001792,2]
[363800443,1748875848129,-851.01,0.0001792,2]
[363800444,1748875848139,-430.0,0.0001792,2]
[363800445,1748875848148,-506.05839542,0.0001792,2]
[363800446,1748875848157,-430.0,0.0001792,2]
[363800447,1748875848166,-430.0,0.0001792,2]
[363800448,1748875848175,-430.0,0.00017921,2]
[363800449,1748875848184,-430.0,0.00017921,2]
[363800450,1748875848193,-430.0,0.00017921,2]
[363800451,1748875848203,-430.0,0.00017921,2]
[363800452,1748875848212,-375.29681802,0.00017921,2]
[363800453,1748875848221,-430.0,0.00017921,2]
[363800454,1748875848231,-469.58,0.00017921,2]
[363800455,1748875848241,-470.0,0.00017921,2]
[363800456,1748875848251,-458.12,0.00017921,2]
[363800457,1748875848261,-430.0,0.00017921,2]
[363800459,1748875848271,-430.0,0.00017921,2]
[363800461,1748875848281,-430.0,0.00017921,2]
[363800463,1748875848291,-430.0,0.00017921,2]
[363800465,1748875848300,-430.0,0.00017921,2]
[363800466,1748875848310,-430.0,0.00017921,2]
[363800467,1748875848319,-524.55,0.00017921,2]
[363800468,1748875848329,-430.0,0.00017921,2]
[363800469,1748875848338,-430.0,0.00017921,2]
[363800470,1748875848348,-430.0,0.00017921,2]
[363800471,1748875848358,-430.0,0.00017921,2]
[363800472,1748875848368,-878.66,0.00017921,2]
[363800473,1748875848377,-430.0,0.00017921,2]
[363800474,1748875848388,-430.0,0.00017921,2]
[363800475,1748875848402,-430.0,0.00017921,2]
[363800476,1748875848412,-430.0,0.00017921,2]
[363800477,1748875848422,-430.0,0.00017921,2]
[363800478,1748875848432,-430.0,0.00017921,2]
[363800479,1748875848443,-430.0,0.00017921,2]
[363800480,1748875848453,-430.0,0.00017921,2]
[363800481,1748875848463,-430.0,0.00017921,2]
[363800482,1748875848474,-2068.77,0.00017921,2]
[363800483,1748875848485,-873.36,0.00017921,2]
[363800484,1748875848495,-538.98973588,0.00017921,2]
[363800485,1748875848504,-430.0,0.00017921,2]
[363800486,1748875848514,-430.0,0.00017921,2]
[363800488,1748875848524,-476.02,0.00017921,2]
[363800489,1748875848534,-430.0,0.00017921,2]
[363800490,1748875848544,-430.0,0.00017921,2]
[363800491,1748875848554,-430.0,0.00017921,2]
[363800492,1748875848564,-340.0,0.00017921,2]
[363800493,1748875848574,-430.0,0.00017921,2]
[363800494,1748875848585,-430.0,0.00017921,2]
[363800495,1748875848594,-430.0,0.00017921,2]
[363800496,1748875848605,-574.89539332,0.00017921,2]
[363800497,1748875848615,-430.0,0.00017921,2]
[363800498,1748875848625,-430.0,0.00017921,2]
[363800500,1748875848635,-565.92,0.00017921,2]
[363800502,1748875848645,-733.15,0.00017921,2]
[363800503,1748875848655,-430.0,0.00017921,2]
[363800505,1748875848665,-430.0,0.00017921,2]
[363800507,1748875848676,-1526.4,0.00017921,2]
[363800509,1748875848686,-430.0,0.00017921,2]
[363800511,1748875848696,-654.67,0.00017921,2]
[363800513,1748875848705,-430.0,0.00017921,2]
[363800515,1748875848716,-430.0,0.00017921,2]
[363800517,1748875848725,-3041.88,0.00017921,2]
[363800519,1748875848736,-430.0,0.00017921,2]
[363800521,1748875848746,-501.42,0.00017921,2]
[363800523,1748875848756,-1091.3,0.00017922,2]
[363800525,1748875848766,-256.82,0.00017922,2]
[363800527,1748875848776,-1175.57,0.00017922,2]
[363800528,1748875848785,-1163.93,0.00017922,2]
[363800530,1748875848795,-430.0,0.00017922,2]
[363800531,1748875848805,-430.0,0.00017923,2]
[363800532,1748875848815,-430.0,0.00017923,2]
[363800533,1748875848825,-430.0,0.00017923,2]
[363800534,1748875848835,-430.0,0.00017923,2]
[363800535,1748875848844,-430.0,0.00017923,2]
[363800536,1748875848854,-434.65,0.00017923,2]
[363800537,1748875848864,-430.0,0.00017923,2]
[363800538,1748875848875,-430.0,0.00017923,2]
[363800539,1748875848885,-430.0,0.00017923,2]
[363800540,1748875848895,-499.83698707,0.00017923,2]
[363800542,1748875848905,-430.0,0.00017923,2]
[363800544,1748875848915,-470.82,0.00017923,2]
[363800546,1748875848925,-430.0,0.00017923,2]
[363800548,1748875848935,-313.95929003,0.00017923,2]
[363800550,1748875848945,-430.0,0.00017923,2]
[363800552,1748875848955,-430.0,0.00017923,2]
[363800554,1748875848965,-430.0,0.00017923,2]
[363800556,1748875848975,-430.0,0.00017923,2]
[363800558,1748875848988,-430.0,0.00017923,2]
[363800560,1748875848998,-430.0,0.00017923,2]
[363800561,1748875849008,-430.0,0.00017923,2]
[363800563,1748875849018,-430.0,0.00017923,2]
[363800564,1748875849028,-160.0,0.00017924,2]
[363800566,1748875849037,-420.0,0.00018082,2]
[363800568,1748875849048,-211.0,0.00018082,2]
[363800570,1748875849059,-420.0,0.00018082,2]
[363800572,1748875849069,-1158.30283495,0.00018107,2]
[363800574,1748875849080,-265.0,0.00018172,2]
[363800575,1748875849091,-160.0,0.00018173,2]
[363800577,1748875849102,-842.5625,0.00018173,2]
[363800579,1748875849113,-160.0,0.00018173,2]
[363800580,1748875849124,-229.39799938,0.00018173,2]
[363800581,1748875849135,-423.56953423,0.00018173,2]
[363800582,1748875849147,-160.0,0.00018173,2]
[363800583,1748875849157,-160.0,0.00018177,2]
[363800584,1748875849168,-430.0,0.00018193,2]
[363800585,1748875849179,-430.0,0.00018193,2]
[363800586,1748875849189,-804.94,0.00018193,2]
[363800587,1748875849200,-1248.91,0.00018193,2]
[363800588,1748875849211,-430.0,0.00018193,2]
[363800589,1748875849220,-1900.15,0.00018193,2]
[363800590,1748875849231,-2597.69,0.00018193,2]
[363800591,1748875849242,-430.0,0.00018193,2]
[363800592,1748875849252,-430.0,0.00018194,2]
[363800593,1748875849263,-638.72,0.00018194,2]
[363800594,1748875849273,-2908.69,0.00018194,2]
[363800595,1748875849284,-430.0,0.00018194,2]
[363800596,1748875849294,-430.0,0.00018194,2]
[363800597,1748875849304,-430.0,0.00018194,2]
[363800598,1748875849314,-430.0,0.00018194,2]
[363800599,1748875849325,-497.83,0.00018194,2]
[363800600,1748875849335,-1048.09,0.00018194,2]
[363800601,1748875849344,-430.0,0.00018194,2]
[363800602,1748875849354,-430.0,0.00018194,2]
[363800603,1748875849365,-673.12,0.00018194,2]
[363800604,1748875849375,-175.76,0.00018194,2]
[363800605,1748875849385,-430.0,0.00018194,2]
[363800606,1748875849395,-430.0,0.00018194,2]
[363800607,1748875849411,-430.0,0.00018194,2]
[363800608,1748875849421,-430.0,0.00018194,2]
[363800609,1748875849431,-564.67,0.00018194,2]
[363800610,1748875849443,-851.01,0.00018194,2]
[363800611,1748875849453,-430.0,0.00018194,2]
[363800612,1748875849463,-430.0,0.00018194,2]
[363800613,1748875849473,-514.8189457,0.00018194,2]
[363800614,1748875849486,-430.0,0.00018195,2]
[363800615,1748875849496,-430.0,0.00018195,2]
[363800616,1748875849506,-430.0,0.00018195,2]
[363800617,1748875849517,-430.0,0.00018195,2]
[363800618,1748875849527,-469.58,0.00018195,2]
[363800619,1748875849539,-433.68576195,0.00018195,2]
[363800620,1748875849549,-458.12,0.00018195,2]
[363800621,1748875849559,-430.0,0.00018195,2]
[363800622,1748875849570,-430.0,0.00018195,2]
[363800623,1748875849580,-430.0,0.00018195,2]
[363800624,1748875849590,-430.0,0.00018195,2]
[363800625,1748875849600,-430.0,0.00018195,2]
[363800626,1748875849610,-430.0,0.00018195,2]
[363800627,1748875849620,-430.0,0.00018195,2]
[363800628,1748875849630,-430.0,0.00018195,2]
[363800629,1748875849640,-430.0,0.00018195,2]
[363800630,1748875849651,-878.66,0.00018195,2]
[363800631,1748875849660,-430.0,0.00018195,2]
[363800632,1748875849670,-430.0,0.00018195,2]
[363800633,1748875849680,-430.0,0.00018195,2]
[363800634,1748875849690,-430.0,0.00018195,2]
[363800635,1748875849700,-430.0,0.00018195,2]
[363800636,1748875849710,-430.0,0.00018195,2]
[363800637,1748875849720,-430.0,0.00018195,2]
[363800638,1748875849731,-430.0,0.00018195,2]
[363800639,1748875849743,-2068.77,0.00018195,2]
[363800640,1748875849753,-873.36,0.00018195,2]
[363800641,1748875849763,-430.0,0.00018195,2]
[363800642,1748875849774,-430.0,0.00018195,2]
[363800643,1748875849784,-476.02,0.00018195,2]
[363800644,1748875849794,-430.0,0.00018195,2]
[363800645,1748875849804,-430.0,0.00018195,2]
[363800646,1748875849814,-430.0,0.00018195,2]
[363800647,1748875849824,-430.0,0.00018195,2]
[363800648,1748875849834,-430.0,0.00018195,2]
[363800649,1748875849844,-430.0,0.00018195,2]
[363800650,1748875849854,-430.0,0.00018195,2]
[363800651,1748875849864,-430.0,0.00018195,2]
[363800652,1748875849876,-565.92,0.00018195,2]
[363800653,1748875849886,-733.15,0.00018195,2]
[363800654,1748875849898,-430.0,0.00018195,2]
[363800655,1748875849909,-430.0,0.00018195,2]
[363800656,1748875849919,-1526.4,0.00018195,2]
[363800657,1748875849929,-430.0,0.00018195,2]
[363800658,1748875849940,-654.67,0.00018195,2]
[363800659,1748875849950,-430.0,0.00018195,2]
[363800660,1748875849961,-3041.88,0.00018195,2]
[363800661,1748875849971,-430.0,0.00018195,2]
[363800662,1748875849981,-501.42,0.00018195,2]
[363800663,1748875849994,-430.0,0.00018196,2]
[363800664,1748875850004,-430.0,0.00018196,2]
[363800665,1748875850014,-430.0,0.00018196,2]
[363800666,1748875850024,-434.65,0.00018196,2]
[363800667,1748875850034,-430.0,0.00018196,2]
[363800668,1748875850043,-430.0,0.00018196,2]
[363800669,1748875850054,-430.0,0.00018196,2]
[363800670,1748875850064,-350.5044559,0.00018196,2]
[363800671,1748875850074,-430.0,0.00018196,2]
[363800672,1748875850084,-430.0,0.00018196,2]
[363800673,1748875850095,-430.0,0.00018196,2]
[363800674,1748875850104,-430.0,0.00018196,2]
[363800675,1748875850114,-343.05673029,0.00018196,2]
[363800676,1748875850125,-430.0,0.00018196,2]
[363800677,1748875850135,-430.0,0.00018196,2]
[363800678,1748875850145,-430.0,0.00018196,2]
[363800679,1748875850154,-1091.3,0.00018196,2]
[363800680,1748875850166,-1175.57,0.00018196,2]
[363800681,1748875850176,-1163.93,0.00018196,2]
[363800682,1748875850186,-430.0,0.00018196,2]
[363800683,1748875850197,-1000.0,0.00018216,2]
[363800684,1748875850207,-416.68985103,0.00018234,2]
[363800685,1748875850218,-738.36753509,0.00018254,2]
[363800686,1748875850228,-1158.30283495,0.00018314,2]
[363800687,1748875850239,-430.0,0.00018467,2]
[363800688,1748875850249,-430.0,0.00018467,2]
[363800689,1748875850259,-804.94,0.00018467,2]
[363800690,1748875850270,-1248.91,0.00018467,2]
[363800691,1748875850281,-430.0,0.00018467,2]
[363800692,1748875850291,-1900.15,0.00018467,2]
[363800693,1748875850302,-2597.69,0.00018467,2]
[363800694,1748875850312,-430.0,0.00018467,2]
[363800695,1748875850322,-162.52361612,0.00018468,2]
[363800696,1748875850333,-638.72,0.00018468,2]
[363800697,1748875850343,-2908.69,0.00018468,2]
[363800698,1748875850354,-430.0,0.00018468,2]
[363800699,1748875850364,-430.0,0.00018468,2]
[363800700,1748875850374,-430.0,0.00018468,2]
[363800701,1748875850385,-430.0,0.00018468,2]
[363800702,1748875850396,-497.83,0.00018468,2]
[363800703,1748875850410,-1048.09,0.00018468,2]
[363800704,1748875850420,-441.45913133,0.00018468,2]
[363800705,1748875850431,-430.0,0.00018468,2]
[363800706,1748875850442,-673.12,0.00018468,2]
[363800707,1748875850452,-430.0,0.00018468,2]
[363800708,1748875850462,-430.0,0.00018468,2]
[363800709,1748875850473,-430.0,0.00018468,2]
[363800710,1748875850484,-430.0,0.00018468,2]
[363800711,1748875850495,-564.67,0.00018468,2]
[363800712,1748875850505,-851.01,0.00018468,2]
[363800713,1748875850514,-430.0,0.00018468,2]
[363800714,1748875850524,-430.0,0.00018468,2]
[363800715,1748875850535,-430.0,0.00018469,2]
[363800716,1748875850544,-430.0,0.00018469,2]
[363800717,1748875850554,-453.16365329,0.00018469,2]
[363800718,1748875850565,-430.0,0.00018469,2]
[363800719,1748875850694,-469.58,0.00018469,2]
[363800720,1748875850705,-458.12,0.00018469,2]
[363800721,1748875850714,-430.0,0.00018469,2]
[363800722,1748875850724,-430.0,0.00018469,2]
[363800723,1748875850734,-430.0,0.00018469,2]
[363800724,1748875850745,-430.0,0.00018469,2]
[363800725,1748875850755,-430.0,0.00018469,2]
[363800726,1748875850764,-334.28957184,0.00018469,2]
[363800727,1748875850774,-878.66,0.00018469,2]
[363800728,1748875850783,-430.0,0.00018469,2]
[363800729,1748875850792,-349.58,0.00018469,2]
[363800730,1748875850802,-430.0,0.00018469,2]
[363800731,1748875850811,-430.0,0.00018469,2]
[363800732,1748875850821,-448.44,0.00018469,2]
[363800733,1748875850831,-430.0,0.00018469,2]
[363800734,1748875850841,-430.0,0.00018469,2]
[363800735,1748875850851,-430.0,0.00018469,2]
[363800736,1748875850861,-2068.77,0.00018469,2]
[363800737,1748875850871,-873.36,0.00018469,2]
[363800738,1748875850880,-430.0,0.00018469,2]
[363800739,1748875850890,-430.0,0.00018469,2]
[363800740,1748875850900,-476.02,0.00018469,2]
[363800741,1748875850910,-430.0,0.00018469,2]
[363800742,1748875850921,-430.0,0.00018469,2]
[363800743,1748875850931,-193.24063279,0.00018469,2]
[363800744,1748875850940,-430.0,0.00018469,2]
[363800745,1748875850950,-516.16,0.00018469,2]
[363800746,1748875850960,-427.02,0.00018469,2]
[363800747,1748875850970,-430.0,0.00018469,2]
[363800748,1748875850980,-565.92,0.00018469,2]
[363800749,1748875850991,-733.15,0.00018469,2]
[363800750,1748875851001,-505.91156676,0.00018469,2]
[363800751,1748875851011,-430.0,0.00018469,2]
[363800752,1748875851022,-1526.4,0.00018469,2]
[363800753,1748875851031,-430.0,0.00018469,2]
[363800754,1748875851041,-654.67,0.00018469,2]
[363800755,1748875851051,-430.0,0.00018469,2]
[363800756,1748875851060,-3041.88,0.00018469,2]
[363800757,1748875851069,-430.0,0.00018469,2]
[363800758,1748875851079,-501.42,0.00018469,2]
[363800759,1748875851089,-430.0,0.0001847,2]
[363800760,1748875851099,-434.65,0.0001847,2]
[363800761,1748875851108,-430.0,0.0001847,2]
[363800762,1748875851117,-430.0,0.0001847,2]
[363800763,1748875851126,-430.0,0.0001847,2]
[363800764,1748875851136,-430.0,0.0001847,2]
[363800765,1748875851146,-430.0,0.0001847,2]
[363800766,1748875851155,-430.0,0.0001847,2]
[363800767,1748875851165,-430.0,0.0001847,2]
[363800768,1748875851174,-430.0,0.0001847,2]
[363800769,1748875851184,-430.0,0.0001847,2]
[363800770,1748875851194,-1091.3,0.0001847,2]
[363800771,1748875851204,-1175.57,0.0001847,2]
[363800772,1748875851214,-1163.93,0.0001847,2]
[363800773,1748875851224,-188.88568768,0.0001847,2]
[363800774,1748875851234,-500.0,0.000185,2]
[363800775,1748875851245,-1158.30283495,0.00018521,2]
[363800776,1748875851255,-1158.30283495,0.00018728,2]
[363800777,1748875851265,-430.0,0.00018741,2]
[363800778,1748875851276,-430.0,0.00018741,2]
[363800779,1748875851286,-804.94,0.00018741,2]
[363800780,1748875851296,-1248.91,0.00018741,2]
[363800781,1748875851306,-430.0,0.00018741,2]
[363800782,1748875851316,-1900.15,0.00018741,2]
[363800783,1748875851325,-2597.69,0.00018741,2]
[363800784,1748875851335,-430.0,0.00018741,2]
[363800785,1748875851346,-638.72,0.00018742,2]
[363800786,1748875851355,-2908.69,0.00018742,2]
[363800787,1748875851366,-430.0,0.00018742,2]
[363800788,1748875851376,-430.0,0.00018742,2]
[363800789,1748875851386,-430.0,0.00018742,2]
[363800790,1748875851399,-430.0,0.00018742,2]
[363800791,1748875851413,-497.83,0.00018742,2]
[363800792,1748875851423,-1048.09,0.00018742,2]
[363800793,1748875851432,-430.0,0.00018742,2]
[363800794,1748875851443,-673.12,0.00018742,2]
[363800795,1748875851452,-430.0,0.00018742,2]
[363800796,1748875851462,-430.0,0.00018742,2]
[363800797,1748875851473,-430.0,0.00018742,2]
[363800798,1748875851484,-430.0,0.00018742,2]
[363800799,1748875851496,-564.67,0.00018742,2]
[363800800,1748875851506,-851.01,0.00018742,2]
[363800801,1748875851515,-430.0,0.00018742,2]
[363800802,1748875851525,-155.43779901,0.00018742,2]
[363800803,1748875851535,-430.0,0.00018743,2]
[363800804,1748875851545,-430.0,0.00018743,2]
[363800805,1748875851556,-430.0,0.00018743,2]
[363800806,1748875851567,-469.58,0.00018743,2]
[363800807,1748875851577,-458.12,0.00018743,2]
[363800808,1748875851587,-430.0,0.00018743,2]
[363800809,1748875851596,-430.0,0.00018743,2]
[363800810,1748875851606,-430.0,0.00018743,2]